bitfinex/quotes_SOLUSD_20260309
["timestamp","ask_amount","ask_price","bid_price","bid_amount"]
[1773065847047,17.59422436,85.39,85.348,3.86280955]
[1773065847241,17.59422436,85.39,85.36,17.59422436]
[1773065847643,3.72196488,85.399,85.36,11.29130966]
[1773065847877,0.28432314,85.429,85.323,41.02059232]
[1773065847878,3.72196488,85.369,85.323,44.88340187]
[1773065848173,11.29130966,85.35,85.313,3.86280955]
[1773065848346,3.72196488,85.339,85.302,17.59422436]
[1773065848550,11.29130966,85.32,85.28,11.29130966]
[1773065848769,11.29130966,85.32,85.272,3.86280955]
[1773065848770,11.72071871,85.319,85.281,11.72594129]
[1773065848973,11.29130966,85.31,85.281,11.72594129]
[1773065849267,11.29130966,85.384,85.261,11.72869189]
[1773065849268,11.29130966,85.29,85.261,11.72869189]
[1773065849467,15.01327454,85.3,85.261,11.72869189]
[1773065849676,17.65305168,85.29,85.261,11.72869189]
[1773065849844,21.37501656,85.29,85.251,11.73006768]
[1773065850277,3.69383402,85.344,85.28,35.30610336]
[1773065850444,9.21330675,85.56,85.46,17.65305168]
[1773065850654,134.3693404,85.585,85.5,17.65305168]
[1773065850856,17.65305168,85.51,85.47,17.65305168]
[1773065851076,87.63217852,85.585,85.481,0.28432314]
[1773065851282,87.63217852,85.585,85.452,181.38838175]
[1773065851283,17.65305168,85.52,85.48,17.65305168]
[1773065851476,17.65305168,85.51,85.454,30.0]
[1773065851681,227.84366416,85.585,85.454,30.0]
[1773065851856,286.26511651,85.585,85.47,17.65305168]
[1773065852171,4.17335335,85.529,85.48,17.65305168]
[1773065852376,4.17335335,85.529,85.452,228.19828672]
[1773065852377,4.17335335,85.529,85.455,3.69383402]
[1773065852578,4.17335335,85.519,85.48,17.65305168]
[1773065852775,4.17335335,85.509,85.48,17.65305168]
[1773065852980,0.1,85.53,85.5,17.65305168]
[1773065853157,17.65305168,85.52,85.456,40.95674966]
[1773065853357,17.65305168,85.51,85.47,17.65305168]
[1773065853558,17.65305168,85.49,85.45,17.65305168]
[1773065853769,17.65305168,85.48,85.44,17.65305168]
[1773065853966,0.14216157,85.509,85.44,17.65305168]
[1773065854278,17.65305168,85.47,85.431,29.26334755]
[1773065854473,17.65305168,85.47,85.44,17.65305168]
[1773065854691,11.69777525,85.487,85.44,17.65305168]
[1773065854861,4.00115045,85.479,85.44,17.65305168]
[1773065855061,4.00115045,85.479,85.45,17.65305168]
[1773065855966,17.65305168,85.5,85.443,4.03894448]
[1773065856778,17.65305168,85.5,85.445,4.03894448]
[1773065856982,11.69464677,85.51,85.445,4.03894448]
[1773065856983,17.65305168,85.51,85.445,4.03894448]
[1773065857165,11.69378354,85.516,85.445,4.03894448]
[1773065857166,17.65305168,85.5,85.47,17.65305168]
[1773065857367,17.65305168,85.5,85.46,17.65305168]
[1773065857562,17.65305168,85.51,85.459,4.03894448]
[1773065857770,11.69298509,85.522,85.459,4.03894448]
[1773065857771,17.65305168,85.5,85.47,17.65305168]
[1773065858461,21.65420213,85.51,85.47,17.65305168]
[1773065859163,11.69467541,85.509,85.471,11.69987481]
[1773065859575,4.00115045,85.508,85.471,11.69987481]
[1773065860083,4.00115045,85.499,85.47,17.65305168]
[1773065860504,4.00115045,85.515,85.48,17.65305168]
[1773065861091,4.10115045,85.53,85.501,11.69576964]
[1773065861288,21.75420213,85.53,85.494,11.69664282]
[1773065861592,4.00115045,85.529,85.494,11.69664282]
[1773065862172,11.69194074,85.529,85.494,11.69664282]
[1773065862378,4.00115045,85.509,85.464,4.03894448]
[1773065862584,4.00115045,85.509,85.47,17.65305168]
[1773065863175,4.00115045,85.507,85.47,29.35302578]
[1773065863375,4.00115045,85.499,85.47,29.35302578]
[1773065863598,17.65305168,85.52,85.49,17.65305168]
[1773065863890,11.69226003,85.527,85.49,17.65305168]
[1773065864066,17.65305168,85.52,85.48,17.65305168]
[1773065864270,11.69226003,85.527,85.49,17.65305168]
[1773065864572,17.65305168,85.52,85.49,17.65305168]
[1773065864877,11.69226003,85.527,85.49,17.65305168]
[1773065865075,17.65305168,85.52,85.48,17.65305168]
[1773065865294,17.65305168,85.52,85.481,11.6985061]
[1773065865588,11.69286284,85.523,85.49,17.65305168]
[1773065865785,0.1,85.53,85.501,4.03894448]
[1773065865989,0.1,85.53,85.51,17.65305168]
[1773065866366,0.1,85.53,85.52,17.65305168]
[1773065867192,11.79187757,85.53,85.482,4.04371629]
[1773065867400,4.08779906,85.529,85.49,17.65305168]
[1773065867695,29.44492925,85.53,85.49,21.69676797]
[1773065867890,21.84085074,85.53,85.5,17.65305168]
[1773065868080,0.1,85.53,85.51,17.65305168]
[1773065869097,4.08779906,85.571,85.52,17.65305168]
[1773065869274,11.68962974,85.546,85.52,17.65305168]
[1773065869477,105.15087725,85.592,85.477,3.69383402]
[1773065869478,17.65305168,85.55,85.513,11.69412175]
[1773065869797,17.65305168,85.53,85.501,11.69576964]
[1773065870496,17.65305168,85.52,85.48,17.65305168]
[1773065870886,4.08779906,85.519,85.48,17.65305168]
[1773065871085,0.28432314,85.539,85.46,17.65305168]
[1773065871086,17.65305168,85.49,85.46,17.65305168]
[1773065871283,4.08779906,85.532,85.48,17.65305168]
[1773065871482,286.35210786,85.559,85.482,4.04371629]
[1773065871483,15.7794664,85.531,85.482,4.04371629]
[1773065871685,11.25874958,85.52,85.482,4.04371629]
[1773065872376,4.08779906,85.53,85.482,4.04371629]
[1773065872580,15.34654864,85.53,85.491,4.04371629]
[1773065873395,15.34654864,85.51,85.47,11.25874958]
[1773065873597,15.34654864,85.51,85.47,22.95876128]
[1773065873805,11.25874958,85.5,85.46,11.25874958]
[1773065873980,4.08779906,85.51,85.46,11.25874958]
[1773065874178,11.25874958,85.5,85.461,4.04371629]
[1773065874586,11.25874958,85.49,85.461,4.04371629]
[1773065874908,11.25874958,85.49,85.451,4.04371629]
[1773065875486,11.25874958,85.49,85.453,4.04371629]
[1773065876004,11.69700376,85.492,85.46,11.25874958]
[1773065876192,11.69700376,85.492,85.453,4.04371629]
[1773065876193,11.25874958,85.49,85.453,4.04371629]
[1773065876504,11.69418915,85.513,85.48,11.25874958]
[1773065876685,11.69418915,85.513,85.466,4.04371629]
[1773065876887,11.69346449,85.518,85.48,11.25874958]
[1773065877311,11.69346449,85.518,85.481,4.04371629]
[1773065877496,4.08779906,85.536,85.5,11.25874958]
[1773065877707,11.69153065,85.532,85.5,11.25874958]
[1773065878110,11.69153065,85.532,85.476,11.69919041]
[1773065878111,11.25874958,85.51,85.476,11.69919041]
[1773065878410,4.08779906,85.518,85.476,11.69919041]
[1773065878586,11.25874958,85.51,85.476,11.69919041]
[1773065879001,11.25874958,85.51,85.475,4.04371629]
[1773065879002,4.08779906,85.509,85.463,4.04371629]
[1773065879200,11.25874958,85.5,85.463,4.04371629]
[1773065879584,11.69604322,85.499,85.464,11.70083309]
[1773065879785,40.93615129,85.499,85.463,4.04371629]
[1773065879992,11.25874958,85.49,85.463,4.04371629]
[1773065880506,11.69604322,85.499,85.464,11.70083309]
[1773065880801,11.25874958,85.49,85.465,4.04371629]
[1773065880981,11.69604322,85.499,85.465,4.04371629]
[1773065881302,40.93615129,85.499,85.465,4.04371629]
[1773065881600,40.93615129,85.499,85.46,11.25874958]
[1773065881601,40.93184263,85.508,85.47,4.04371629]
[1773065881789,11.25874958,85.49,85.458,4.04371629]
[1773065881995,11.25874958,85.5,85.461,4.04371629]
[1773065882314,11.25874958,85.49,85.461,4.04371629]
[1773065882522,11.25874958,85.49,85.45,11.25874958]
[1773065882803,40.93184263,85.508,85.408,4.04371629]
[1773065882804,15.34654864,85.47,85.408,4.04371629]
[1773065883006,11.25874958,85.44,85.403,11.70915812]
[1773065883186,11.25874958,85.43,85.398,11.70974665]
[1773065883385,4.13668715,85.439,85.401,4.42137577]
[1773065883705,11.70562689,85.429,85.391,4.42137577]
[1773065883882,11.25874958,85.43,85.39,11.25874958]
[1773065884089,11.25874958,85.42,85.388,11.71124748]
[1773065884282,11.25874958,85.42,85.387,4.42137577]
[1773065885000,11.25874958,85.42,85.381,4.42137577]
[1773065885517,11.70562689,85.429,85.392,11.71069889]
[1773065885991,11.25874958,85.42,85.39,4.42137577]
[1773065886197,40.96969412,85.429,85.391,4.42137577]
[1773065886408,11.70562689,85.429,85.391,4.42137577]
[1773065886593,11.25874958,85.42,85.391,4.42137577]
[1773065886912,11.70562689,85.429,85.35,0.2]
[1773065886913,11.25874958,85.4,85.361,4.42137577]
[1773065887117,11.25874958,85.4,85.37,15.68012535]
[1773065887289,4.13668715,85.409,85.36,15.68012535]
[1773065887290,11.25874958,85.39,85.36,15.68012535]
[1773065887485,11.25874958,85.39,85.36,4.42137577]
[1773065887687,40.98888615,85.389,85.36,4.42137577]
[1773065888020,11.25874958,85.38,85.35,0.2]
[1773065888519,11.25874958,85.37,85.35,0.2]
[1773065888836,11.25874958,85.37,85.336,4.42137577]
[1773065889132,11.25874958,85.35,85.321,4.42137577]
[1773065889735,11.7165989,85.349,85.321,4.42137577]
[1773065889935,11.25874958,85.36,85.323,4.42137577]
[1773065890237,11.71248199,85.379,85.341,4.42137577]
[1773065890716,11.71248199,85.379,85.35,11.25874958]
[1773065890918,11.25874958,85.37,85.331,4.42137577]
[1773065891123,11.25874958,85.37,85.34,11.25874958]
[1773065891406,11.25874958,85.37,85.331,4.42137577]
[1773065891597,11.71385397,85.369,85.333,4.42137577]
[1773065891798,40.9984889,85.369,85.333,4.42137577]
[1773065891999,11.25874958,85.36,85.333,4.42137577]
[1773065892215,11.25874958,85.36,85.322,11.72023245]
[1773065892417,11.25874958,85.36,85.323,4.42137577]
[1773065892620,11.25874958,85.35,85.311,4.42137577]
[1773065892799,11.25874958,85.34,85.311,4.42137577]
[1773065893000,11.25874958,85.34,85.301,4.42137577]
[1773065893201,4.13668715,85.356,85.299,11.72346686]
[1773065893202,11.25874958,85.35,85.311,4.42137577]
[1773065893619,17.63077844,85.35,85.311,4.42137577]
[1773065893802,17.63077844,85.35,85.282,46.90291052]
[1773065893803,17.63077844,85.37,85.341,4.42137577]
[1773065894336,17.63077844,85.38,85.341,4.42137577]
[1773065895710,29.27059179,85.41,85.363,4.42137577]
[1773065895923,17.63077844,85.4,85.371,4.42137577]
[1773065896424,46.82022627,85.434,85.371,4.42137577]
[1773065896425,17.63077844,85.41,85.38,17.63077844]
[1773065896725,17.63077844,85.43,85.4,17.63077844]
[1773065897223,17.63077844,85.43,85.391,4.42137577]
[1773065897522,17.63077844,85.44,85.401,4.42137577]
[1773065897726,21.76746559,85.45,85.411,11.7080938]
[1773065897901,11.70299422,85.449,85.411,16.12946957]
[1773065898107,17.63077844,85.44,85.411,4.42137577]
[1773065898304,4.13668715,85.439,85.401,11.70939784]
[1773065898507,4.13668715,85.429,85.391,4.42137577]
[1773065898700,17.63077844,85.42,85.391,4.42137577]
[1773065899101,17.63077844,85.42,85.38,17.63077844]
[1773065899315,17.63077844,85.41,85.379,4.42137577]
[1773065899515,17.63077844,85.41,85.38,11.71234481]
[1773065899710,11.70699727,85.419,85.382,11.71207045]
[1773065900440,0.28432314,85.439,85.382,11.71207045]
[1773065900441,17.63077844,85.45,85.411,4.42137577]
[1773065900605,17.63077844,85.45,85.42,17.63077844]
[1773065900802,17.63077844,85.45,85.411,4.42137577]
[1773065901013,17.63077844,85.45,85.42,17.63077844]
[1773065901242,4.13668715,85.457,85.42,17.63077844]
[1773065901447,4.13668715,85.457,85.411,4.42137577]
[1773065901722,17.63077844,85.45,85.411,4.42137577]
[1773065901934,17.63077844,85.44,85.412,4.42137577]
[1773065902111,17.63077844,85.44,85.401,4.42137577]
[1773065902834,11.70220216,85.455,85.42,17.63077844]
[1773065903534,17.63077844,85.47,85.44,17.63077844]
[1773065904111,17.63077844,85.47,85.392,46.84248736]
[1773065904112,4.13668715,85.466,85.43,17.63077844]
[1773065904415,4.13668715,85.459,85.409,4.42137577]
[1773065904821,4.13668715,85.459,85.401,16.13072447]
[1773065905028,17.63077844,85.44,85.401,4.42137577]
[1773065905227,17.63077844,85.44,85.41,17.63077844]
[1773065905421,4.13668715,85.448,85.411,4.42137577]
[1773065905824,17.63077844,85.46,85.421,4.42137577]
[1773065906207,11.70151768,85.459,85.422,11.70658612]
[1773065906431,40.95531189,85.459,85.421,16.12806397]
[1773065906633,11.70151768,85.459,85.43,17.63077844]
[1773065906844,11.70151768,85.459,85.422,4.42137577]
[1773065907132,17.63077844,85.45,85.422,4.42137577]
[1773065907350,17.63077844,85.45,85.411,4.42137577]
[1773065907635,17.58741174,85.44,85.411,4.42137577]
[1773065908107,11.7028871,85.449,85.411,16.12946957]
[1773065908312,40.96010485,85.449,85.411,16.12946957]
[1773065908622,40.96010485,85.449,85.385,4.42137577]
[1773065908623,17.58741174,85.42,85.385,4.42137577]
[1773065909820,17.58741174,85.41,85.385,4.42137577]
[1773065910533,17.58741174,85.41,85.375,4.42137577]
[1773065911633,17.58741174,85.4,85.375,4.42137577]
[1773065911837,11.70973898,85.399,85.375,4.42137577]
[1773065912130,17.58741174,85.39,85.351,4.42137577]
[1773065912514,17.58741174,85.38,85.351,4.42137577]
[1773065912824,17.58741174,85.37,85.34,4.42137577]
[1773065913027,17.58741174,85.38,85.34,22.00878751]
[1773065913532,17.58741174,85.38,85.341,4.32906388]
[1773065913714,11.71248199,85.379,85.343,4.32906388]
[1773065913917,4.09532027,85.393,85.351,4.32906388]
[1773065913918,11.71111033,85.389,85.351,4.32906388]
[1773065914124,11.71111033,85.389,85.31,4.82477569]
[1773065914125,17.58741174,85.37,85.338,4.32906388]
[1773065914728,17.58741174,85.37,85.33,17.58741174]
[1773065914729,17.58741174,85.36,85.33,17.58741174]
[1773065915331,17.58741174,85.36,85.326,4.32906388]
[1773065915836,11.71522627,85.359,85.326,4.32906388]
[1773065916247,41.00329196,85.359,85.326,4.32906388]
[1773065916422,11.30117263,85.35,85.314,4.32906388]
[1773065916934,45.09861223,85.359,85.31,11.30117263]
[1773065916935,4.09532027,85.349,85.31,11.30117263]
[1773065917146,4.09532027,85.349,85.311,4.32906388]
[1773065917834,11.7165989,85.349,85.321,4.32906388]
[1773065918625,11.7165989,85.349,85.312,41.02588147]
[1773065918626,11.7165989,85.349,85.312,11.72168042]
[1773065918827,41.00809616,85.349,85.311,4.32906388]
[1773065919345,11.30117263,85.33,85.3,15.63023651]
[1773065919523,11.30117263,85.33,85.291,11.72456648]
[1773065919722,11.7165989,85.349,85.311,4.32906388]
[1773065919927,11.30117263,85.36,85.323,4.32906388]
[1773065920533,11.30117263,85.35,85.312,11.72159869]
[1773065920830,11.30117263,85.35,85.32,11.30117263]
[1773065921147,11.30117263,85.35,85.321,4.32906388]
[1773065921448,11.30117263,85.36,85.321,4.32906388]
[1773065921827,40.99464726,85.377,85.341,4.32906388]
[1773065921828,11.71330514,85.373,85.341,4.32906388]
[1773065922032,40.99656799,85.373,85.341,4.32906388]
[1773065922238,11.71330514,85.373,85.341,4.32906388]
[1773065922640,11.30117263,85.37,85.33,11.30117263]
[1773065922829,11.30117263,85.36,85.328,4.32906388]
[1773065923035,11.30117263,85.37,85.331,4.32906388]
[1773065923544,11.71330514,85.373,85.341,4.32906388]
[1773065923752,40.99656799,85.373,85.341,4.32906388]
[1773065923932,11.71248199,85.379,85.341,4.32906388]
[1773065924137,11.30117263,85.37,85.341,4.32906388]
[1773065924335,15.3964929,85.37,85.328,4.32906388]
[1773065924535,40.99368697,85.379,85.267,1.17278665]
[1773065924536,11.30117263,85.34,85.267,1.17278665]
[1773065924738,40.99368697,85.379,85.271,4.32906388]
[1773065924739,11.30117263,85.31,85.271,4.32906388]
[1773065924933,4.09532027,85.337,85.268,11.72772904]
[1773065924934,11.30117263,85.32,85.281,4.32906388]
[1773065925237,11.30117263,85.34,85.301,4.32906388]
[1773065925642,11.30117263,85.33,85.301,4.32906388]
[1773065925850,11.71797185,85.339,85.31,11.30117263]
[1773065926049,11.71797185,85.339,85.303,4.32906388]
[1773065926244,11.71797185,85.339,85.31,11.30117263]
[1773065926444,11.71797185,85.339,85.311,4.32906388]
[1773065927168,41.01290148,85.339,85.311,4.32906388]
[1773065927854,0.28432314,85.369,85.311,4.32906388]
[1773065927855,11.71673618,85.348,85.311,4.32906388]
[1773065928157,11.71673618,85.348,85.281,46.90334719]
[1773065928158,11.71584075,85.355,85.321,4.32906388]
[1773065928460,11.30117263,85.35,85.313,4.32906388]
[1773065929041,11.30117263,85.35,85.32,11.30117263]
[1773065929357,4.09532027,85.339,85.302,4.38998528]
[1773065929658,4.09532027,85.349,85.302,4.38998528]
[1773065929876,11.30117263,85.32,85.28,11.30117263]
[1773065930036,11.30117263,85.32,85.281,11.72594129]
[1773065930037,11.72085609,85.318,85.281,11.72594129]
[1773065930238,16.06795499,85.318,85.281,11.72594129]
[1773065930461,4.3470989,85.317,85.281,11.72594129]
[1773065931149,33.64564398,85.329,85.29,11.30117263]
[1773065931460,33.64564398,85.329,85.281,41.04079453]
[1773065931461,11.71841258,85.336,85.31,11.30117263]
[1773065931645,11.71841258,85.336,85.3,11.30117263]
[1773065931851,4.3470989,85.335,85.3,11.30117263]
[1773065932359,4.3470989,85.335,85.301,11.72319199]
[1773065932550,23.01913558,85.34,85.31,11.30117263]
[1773065932751,52.31372194,85.34,85.302,4.38998528]
[1773065933067,4.3470989,85.339,85.302,4.38998528]
[1773065934242,4.3470989,85.386,85.321,11.72044397]
[1773065934560,4.3470989,85.364,85.33,11.30117263]
[1773065934740,4.3470989,85.364,85.321,45.41153917]
[1773065934741,11.30117263,85.35,85.321,16.11042925]
[1773065934940,4.3470989,85.359,85.321,16.11042925]
[1773065935238,11.30117263,85.37,85.33,11.30117263]
[1773065935451,4.3470989,85.369,85.33,11.30117263]
[1773065935854,11.30117263,85.36,85.33,11.30117263]
[1773065936051,11.30117263,85.36,85.322,4.38998528]
[1773065936379,4.3470989,85.349,85.32,11.30117263]
[1773065938842,4.3470989,85.347,85.312,11.72168042]
[1773065939660,11.71522627,85.359,85.33,11.30117263]
[1773065939863,11.30117263,85.38,85.35,11.30117263]
[1773065940072,11.30117263,85.36,85.33,11.30117263]
[1773065940364,11.30117263,85.35,85.321,4.38998528]
[1773065940865,11.7165989,85.349,85.322,11.7203066]
[1773065941052,11.7165989,85.349,85.322,4.38998528]
[1773065941653,41.00809616,85.349,85.322,4.38998528]
[1773065941856,11.7165989,85.349,85.322,4.38998528]
[1773065942370,11.71536352,85.358,85.33,11.30117263]
[1773065942542,11.71486324,85.362,85.34,11.30117263]
[1773065942746,11.71486324,85.362,85.337,4.38998528]
[1773065942947,11.30117263,85.36,85.327,4.38998528]
[1773065943143,11.30117263,85.36,85.33,11.30117263]
[1773065943363,11.71248199,85.379,85.341,4.25735318]
[1773065943669,4.3816701,85.384,85.351,4.25735318]
[1773065944040,11.71174553,85.385,85.34,11.30117263]
[1773065944041,4.3816701,85.379,85.34,11.30117263]
[1773065944246,4.3816701,85.379,85.341,4.25735318]
[1773065944961,11.30117263,85.36,85.33,11.30117263]
[1773065945173,4.3816701,85.369,85.331,11.71907044]
[1773065945745,11.71261917,85.378,85.34,11.30117263]
[1773065946044,11.71155894,85.386,85.361,4.25735318]
[1773065946364,11.71155894,85.386,85.35,15.55852581]
[1773065946865,16.09322904,85.386,85.35,15.55852581]
[1773065947046,4.3816701,85.385,85.35,15.55852581]
[1773065947752,4.3816701,85.385,85.351,11.71632435]
[1773065948768,4.3816701,85.385,85.36,11.30117263]
[1773065948948,4.3816701,85.385,85.352,4.25735318]
[1773065949467,4.3816701,85.385,85.326,0.28432314]
[1773065949468,4.3816701,85.359,85.284,4.25735318]
[1773065949765,11.30117263,85.35,85.311,4.25735318]
[1773065949970,4.3816701,85.349,85.311,4.25735318]
[1773065950173,4.3816701,85.349,85.32,11.30117263]
[1773065950660,4.3816701,85.359,85.321,4.25735318]
[1773065950861,11.30117263,85.35,85.321,4.25735318]
[1773065951356,11.7165989,85.349,85.321,4.25735318]
[1773065951755,4.3816701,85.339,85.31,11.30117263]
[1773065952161,4.3816701,85.339,85.301,11.72319199]
[1773065952975,11.7165989,85.349,85.311,4.25735318]
[1773065953152,4.3816701,85.348,85.311,4.25735318]
[1773065953652,4.3816701,85.348,85.301,41.03117196]
[1773065953653,15.68284273,85.34,85.309,11.7220198]
[1773065953854,15.68284273,85.34,85.31,11.30117263]
[1773065954051,15.68284273,85.34,85.277,3.69383402]
[1773065954052,4.3816701,85.339,85.3,11.30117263]
[1773065954278,4.3816701,85.339,85.29,29.31141836]
[1773065954279,4.3816701,85.319,85.29,4.25735318]
[1773065954568,87.876551,85.347,85.275,4.25735318]
[1773065954569,4.3816701,85.309,85.275,4.25735318]
[1773065954771,4.3816701,85.309,85.275,15.98399774]
[1773065954976,11.30117263,85.3,85.266,11.72796975]
[1773065955273,4.3816701,85.299,85.266,11.72796975]
[1773065955480,4.3816701,85.299,85.27,11.30117263]
[1773065955777,4.3816701,85.299,85.26,0.2]
[1773065955778,4.3816701,85.289,85.26,0.2]
[1773065955982,41.0322566,85.299,85.262,4.25735318]
[1773065956159,11.72358945,85.299,85.262,4.25735318]
[1773065956356,16.10491982,85.301,85.27,11.30117263]
[1773065956561,4.3816701,85.289,85.26,0.2]
[1773065956761,11.30117263,85.28,85.26,0.2]
[1773065956970,4.3816701,85.279,85.26,0.2]
[1773065957353,11.30117263,85.28,85.26,0.2]
[1773065957769,4.3816701,85.278,85.26,0.2]
[1773065958157,11.72557172,85.284,85.26,0.2]
[1773065958364,11.30117263,85.31,85.271,4.25735318]
[1773065958667,11.30117263,85.3,85.271,4.25735318]
[1773065959776,11.72346686,85.299,85.26,15.75852581]
[1773065959981,4.3816701,85.289,85.26,0.2]
[1773065960691,11.72346686,85.299,85.261,4.25735318]
[1773065960982,11.72346686,85.299,85.24,0.2]
[1773065960983,11.30117263,85.27,85.24,0.2]
[1773065961188,4.3816701,85.269,85.24,0.2]
[1773065961362,11.30117263,85.25,85.21,0.2]
[1773065961561,88.2103246,85.299,85.21,0.2]
[1773065961562,0.28432314,85.248,85.21,0.2]
[1773065961777,11.73171904,85.239,85.21,0.2]
[1773065962056,41.06101666,85.239,85.21,11.50117263]
[1773065962280,41.06101666,85.239,85.21,0.2]
[1773065962487,11.30117263,85.23,85.21,0.2]
[1773065962667,4.3816701,85.229,85.21,1e-08]
[1773065962870,4.3816701,85.219,85.17,11.30117263]
[1773065963183,4.3816701,85.209,85.172,11.74089912]
[1773065963363,4.3816701,85.238,85.19,11.30117263]
[1773065963567,87.98789285,85.239,85.172,11.74089912]
[1773065963568,11.30117263,85.22,85.181,4.25735318]
[1773065963968,11.73447235,85.219,85.182,11.73956939]
[1773065964276,4.3816701,85.218,85.182,11.73956939]
[1773065964681,4.3816701,85.229,85.2,11.30117263]
[1773065964882,11.7332332,85.228,85.2,11.30117263]
[1773065965474,4.3816701,85.229,85.2,11.30117263]
[1773065965880,46.91180453,85.267,85.191,4.25735318]
[1773065965881,4.3816701,85.227,85.191,4.25735318]
[1773065966080,4.3816701,85.227,85.17,29.35273108]
[1773065966081,4.3816701,85.227,85.19,11.30117263]
[1773065966271,11.30117263,85.22,85.19,11.30117263]
[1773065966589,4.3816701,85.221,85.19,11.30117263]
[1773065967280,4.3816701,85.219,85.19,11.30117263]
[1773065968470,11.73461005,85.218,85.19,11.30117263]
[1773065968676,4.3816701,85.217,85.181,0.28432314]
[1773065969380,4.3816701,85.217,85.19,11.30117263]
[1773065969577,4.3816701,85.217,85.19,11.33685841]
[1773065970988,4.3816701,85.246,85.21,11.33685841]
[1773065971193,11.7308933,85.245,85.211,4.25735318]
[1773065971590,16.1125634,85.245,85.211,4.25735318]
[1773065971892,11.33685841,85.24,85.21,11.33685841]
[1773065972186,4.3816701,85.239,85.21,11.33685841]
[1773065972388,11.7308933,85.245,85.211,4.25735318]
[1773065972972,4.3816701,85.239,85.2,15.59421159]
[1773065973179,4.3816701,85.239,85.2,23.07384895]
[1773065974521,4.3816701,85.239,85.191,33.66665981]
[1773065974522,4.26758106,85.237,85.191,0.28432314]
[1773065974793,4.26758106,85.229,85.191,0.28432314]
[1773065975997,4.26758106,85.219,85.183,11.73943157]
[1773065976193,4.26758106,85.219,85.19,11.33685841]
[1773065977281,4.26758106,85.219,85.172,0.28432314]
[1773065977282,4.26758106,85.209,85.171,4.32115562]
[1773065977586,4.26758106,85.217,85.181,4.32115562]
[1773065978297,11.73461005,85.218,85.172,11.74094685]
[1773065978298,15.60443947,85.21,85.172,11.74094685]
[1773065978493,15.60443947,85.21,85.171,4.32115562]
[1773065978494,4.26758106,85.209,85.171,4.32115562]
[1773065978694,4.26758106,85.209,85.171,16.0622412]
[1773065979397,11.33685841,85.2,85.171,11.74108558]
[1773065979693,15.60443947,85.2,85.171,11.74108558]
[1773065980101,11.73598723,85.208,85.171,45.41495515]
[1773065980399,11.33685841,85.23,85.2,11.33685841]
[1773065980603,41.05571846,85.25,85.2,11.33685841]
[1773065980604,4.26758106,85.229,85.2,11.33685841]
[1773065980904,4.26758106,85.229,85.191,4.32115562]
[1773065981287,4.26758106,85.229,85.2,11.33685841]
[1773065981483,4.26758106,85.227,85.201,11.73695144]
[1773065981805,4.26758106,85.227,85.196,11.73757251]
[1773065982284,4.26758106,85.227,85.2,11.33685841]
[1773065982483,4.26758106,85.227,85.196,11.73757251]
[1773065983415,4.26758106,85.227,85.192,11.73819137]
[1773065983701,41.06631622,85.228,85.192,11.73819137]
[1773065983702,4.26758106,85.225,85.192,11.73819137]
[1773065983899,4.26758106,85.225,85.2,11.33685841]
[1773065984097,11.73211767,85.237,85.21,11.33685841]
[1773065985703,11.73211767,85.237,85.211,11.73557404]
[1773065985900,11.73094568,85.245,85.211,16.05672966]
[1773065986289,4.26758106,85.244,85.211,45.39566477]
[1773065986693,4.26758106,85.244,85.211,41.07450915]
[1773065987607,4.26758106,85.244,85.22,11.33685841]
[1773065988196,11.73116854,85.243,85.221,11.73419697]
[1773065989313,4.26758106,85.243,85.221,11.73419697]
[1773065989701,4.26758106,85.239,85.21,11.33685841]
[1773065990087,4.26758106,85.239,85.2,11.33685841]
[1773065990293,4.26758106,85.229,85.192,11.73819137]
[1773065990624,4.26758106,85.229,85.2,11.33685841]
[1773065990999,4.39585501,85.239,85.21,11.33685841]
[1773065991198,4.39585501,85.237,85.211,11.73557404]
[1773065992116,11.7309947,85.245,85.212,4.47537421]
[1773065993203,11.73116854,85.243,85.211,11.73557404]
[1773065993412,4.39585501,85.229,85.201,11.73695144]
[1773065995411,4.39585501,85.229,85.195,4.47537421]
[1773065995617,11.7332332,85.228,85.195,4.47537421]
[1773065995794,4.39585501,85.227,85.195,4.47537421]
[1773065996399,4.39585501,85.227,85.2,11.33685841]
[1773065996600,4.39585501,85.227,85.195,4.47537421]
[1773065997033,4.39585501,85.227,85.194,41.08270534]
[1773065997608,11.73192857,85.238,85.201,4.47537421]
[1773065997814,4.39585501,85.237,85.201,4.47537421]
[1773065998326,4.39585501,85.229,85.194,41.08270534]
[1773065998704,4.39585501,85.229,85.2,11.33685841]
[1773065998902,4.39585501,85.229,85.194,41.08270534]
[1773065999510,4.39585501,85.229,85.194,11.73791581]
[1773065999710,4.39585501,85.227,85.194,11.73791581]
[1773066000131,4.39585501,85.219,85.194,11.73791581]
[1773066000620,41.06631622,85.228,85.165,4.47537421]
[1773066000621,4.39585501,85.199,85.165,4.47537421]
[1773066001012,4.39585501,85.199,85.135,4.82477569]
[1773066001013,4.39585501,85.219,85.181,4.47537421]
[1773066001599,4.39585501,85.219,85.183,4.47537421]
[1773066001838,4.39585501,85.219,85.19,11.33685841]
[1773066002116,29.33308302,85.228,85.183,4.47537421]
[1773066002117,4.39585501,85.217,85.183,4.47537421]
[1773066002323,11.73412349,85.222,85.191,4.47537421]